fUST/lending_fUST_20240211
["ID","MTS","AMOUNT","RATE_DAILY","PERIOD"]
[313699280,1707595831160,-80122.76910205,0.00041,30]
[313699281,1707595831181,-153.3462726,0.00041076,30]
[313699311,1707595831918,-1297.90163565,0.00016531,2]
[313699312,1707595831928,-214.1569826,0.00016532,2]
[313699313,1707595831938,-154.87609912,0.00016533,2]
[313699314,1707595831947,-3821.142489,0.00016551,2]
[313699315,1707595831957,-2558.61634231,0.00016554,2]
[313699316,1707595831966,-155.69471093,0.00016568,2]
[313699317,1707595831977,-1000.40633568,0.00016568,2]
[313699318,1707595831986,-200.0,0.00017381,2]
[313699319,1707595831995,-154.90705577,0.00018588,2]
[313699320,1707595832005,-156.67114682,0.00018588,2]
[313699321,1707595832014,-159.68737669,0.00018588,2]
[313699323,1707595832023,-2606.4717958,0.00018589,2]
[313699324,1707595832032,-280.0,0.00019119,2]
[313699326,1707595832041,-169.48012,0.00019178,2]
[313699328,1707595832051,-563.40891521,0.00019625,2]
[313699330,1707595832061,-763.59512221,0.0002,2]
[313699332,1707595832071,-324.18448095,0.0002103,2]
[313699333,1707595832080,-391.0,0.00021031,2]
[313699334,1707595832090,-45739.17014791,0.00021248,2]
[313699335,1707595832103,-14815.5696366,0.00021248,2]
[313699336,1707595837078,5329.28765986,0.0004,120]
[313699380,1707595838084,-23411.56578946,0.00021248,2]
[313699383,1707595838093,-242.25359126,0.00021257,2]
[313699385,1707595838100,-205.89777277,0.00021257,2]
[313699387,1707595838109,-289.75516412,0.00021257,2]
[313699389,1707595838118,-4810.29,0.00021262,3]
[313699391,1707595838127,-1639.41038,0.00021269,2]
[313699393,1707595838135,-2045.10360038,0.0002127,2]
[313699394,1707595838141,-260.50640204,0.0002127,2]
[313699396,1707595838149,-1168.83394899,0.0002127,2]
[313699397,1707595838156,-230.74207544,0.0002127,2]
[313699399,1707595838163,-183.33248648,0.0002127,2]
[313699401,1707595838171,-597.99313348,0.0002127,2]
[313699402,1707595838181,-1434.09189254,0.00021271,2]
[313699403,1707595838188,-15761.15875499,0.00021271,2]
[313699405,1707595838196,-14771.90879165,0.00021271,2]
[313699407,1707595838205,-9137.78802425,0.00021272,2]
[313699409,1707595838216,-40862.21197575,0.00021272,2]
[313699410,1707595838223,-65670.19381133,0.00021272,2]
[313699411,1707595838231,-9032.68314119,0.00021272,2]
[313699412,1707595838238,-2589.57581688,0.00021272,2]
[313699413,1707595838246,-1604.43812373,0.00021888,2]
[313699414,1707595838254,-174.03820036,0.00021888,2]
[313699415,1707595838262,-458.75905141,0.00021888,2]
[313699416,1707595838269,-288.61081693,0.00021888,2]
[313699417,1707595838276,-325.23807304,0.00021888,2]
[313699418,1707595838282,-700.0,0.00021888,2]
[313699419,1707595838289,-667.28794129,0.00021888,2]
[313699420,1707595838297,-168.11316,0.00021918,2]
[313699421,1707595838304,-235.9837923,0.00022569,2]
[313699422,1707595838311,-168.11316,0.00022773,2]
[313699423,1707595838318,-741.82846738,0.00023,2]
[313699424,1707595838325,-200.0,0.00023134,7]
[313699425,1707595838333,-348.0,0.00023134,7]
[313699426,1707595838341,-168.11316,0.00023627,2]
[313699427,1707595838349,-593.05522258,0.00024,2]
[313699428,1707595838356,-168.11316,0.00024482,2]
[313699429,1707595838365,-1018.05941437,0.00024667,2]
[313699430,1707595838372,-228.01511739,0.00024668,2]
[313699431,1707595838379,-523.11414315,0.00024668,2]
[313699432,1707595838386,-6246.47644534,0.00024669,2]
[313699433,1707595838393,-154.87609912,0.00024669,2]
[313699434,1707595838399,-7410.35268892,0.00025,2]
[313699435,1707595838407,-1556.34990313,0.00025,2]
[313699436,1707595838414,-335.73756915,0.00025,2]
[313699437,1707595838421,-4740.91143851,0.00025,2]
[313699438,1707595838428,-154.87609912,0.00025,2]
[313699439,1707595838435,-153.0,0.00025205,2]
[313699440,1707595838441,-153.0,0.00025205,2]
[313699441,1707595838447,-620.20134296,0.00025316,2]
[313699442,1707595838455,-200.0,0.00025447,7]
[313699443,1707595838463,-200.0,0.00025447,7]
[313699444,1707595838469,-368.0,0.00025447,7]
[313699445,1707595838475,-154.87609912,0.00026,2]
[313699446,1707595838482,-280.60910696,0.00026,2]
[313699447,1707595838489,-153.0,0.00026027,2]
[313699448,1707595838497,-188.66809045,0.000264,2]
[313699449,1707595838504,-5000.0,0.000264,2]
[313699450,1707595838511,-5000.0,0.00026424,2]
[313699451,1707595838520,-7246.9201407,0.00026498,2]
[313699452,1707595838529,-279.90301792,0.00026498,2]
[313699453,1707595838538,-609.53602629,0.00026498,2]
[313699454,1707595838547,-150.0,0.00026499,2]
[313699455,1707595838556,-620.01006715,0.00026581,2]
[313699456,1707595838565,-1000.0,0.00026629,3]
[313699457,1707595838574,-165.98692502,0.00026795,2]
[313699458,1707595838583,-678.66620229,0.00026795,2]
[313699459,1707595838591,-2023.84254162,0.00026796,2]
[313699460,1707595838600,-2044.01644384,0.00026796,2]
[313699461,1707595838610,-1264.56481324,0.00026796,2]
[313699462,1707595838619,-4036.76038931,0.00026797,2]
[313699463,1707595838628,-155.59756681,0.00026798,2]
[313699464,1707595838636,-199.08603899,0.00026798,7]
[313699465,1707595838645,-4379.51389575,0.00026798,2]
[313699466,1707595838654,-154.87609912,0.000268,2]
[313699467,1707595838662,-54239.7810799,0.000268,2]
[313699468,1707595838671,-393.82961499,0.000269,2]
[313699469,1707595838680,-184.93340934,0.00027,2]
[313699470,1707595838689,-155.7656961,0.00027,2]
[313699471,1707595838698,-5927.53813965,0.00027,2]
[313699472,1707595838707,-2045.07440966,0.00027,2]
[313699473,1707595838715,-271.97624192,0.00027085,2]
[313699474,1707595838724,-150.87929656,0.00027229,7]
[313699475,1707595838733,-500.0,0.00027397,2]
[313699476,1707595838742,-155.0,0.00027397,2]
[313699477,1707595838751,-999.7351508,0.00027397,2]
[313699478,1707595838759,-153.9751229,0.00027397,2]
[313699479,1707595838768,-162.54410295,0.00027399,10]
[313699480,1707595838777,-164.82456979,0.00027399,10]
[313699481,1707595838786,-628.32086092,0.00027399,2]
[313699482,1707595838794,-400.07454738,0.00027399,2]
[313699483,1707595838803,-244.03066471,0.00027399,2]
[313699484,1707595838811,-249.67288074,0.00027399,2]
[313699485,1707595838820,-500.0,0.00027399,2]
[313699486,1707595838829,-500.0,0.00027399,2]
[313699487,1707595838838,-500.0,0.00027399,2]
[313699488,1707595838846,-436.56627771,0.00027399,2]
[313699489,1707595838856,-500.0,0.00027399,2]
[313699490,1707595838866,-500.0,0.00027399,2]
[313699491,1707595838874,-500.0,0.00027399,2]
[313699492,1707595838883,-500.0,0.00027399,2]
[313699493,1707595838894,-565.54885131,0.00027399,2]
[313699494,1707595838907,-500.0,0.00027399,2]
[313699495,1707595838916,-500.0,0.00027399,2]
[313699496,1707595838925,-500.0,0.00027399,2]
[313699497,1707595838934,-500.0,0.00027399,2]
[313699498,1707595838944,-500.0,0.00027399,2]
[313699499,1707595838954,-500.0,0.00027399,2]
[313699500,1707595838963,-159.92956588,0.00027399,2]
[313699501,1707595838973,-500.0,0.00027399,2]
[313699502,1707595838982,-500.0,0.00027399,2]
[313699503,1707595838991,-500.0,0.00027399,2]
[313699504,1707595839001,-500.0,0.00027399,2]
[313699505,1707595839010,-505.0,0.00027399,2]
[313699506,1707595839019,-276000.0,0.000274,2]
[313699507,1707595839028,-442.233605,0.000274,2]
[313699508,1707595839037,-442.233605,0.000274,2]
[313699509,1707595839046,-151.0,0.000274,2]
[313699510,1707595839055,-151.0,0.000274,2]
[313699511,1707595839066,-151.526744,0.000274,2]
[313699512,1707595839075,-150.0,0.00027499,2]
[313699513,1707595839085,-30025.29666657,0.000275,2]
[313699514,1707595839097,-12846.35222807,0.000275,2]
[313699515,1707595839106,-500.0,0.00027534,2]
[313699516,1707595839117,-150.1,0.00027549,2]
[313699517,1707595839126,-8680.98940855,0.0002755,4]
[313699518,1707595839135,-235.9837923,0.00027569,2]
[313699519,1707595839144,-154.87609912,0.000276,2]
[313699520,1707595839153,-500.0,0.00027671,2]
[313699521,1707595839163,-153.0,0.00027671,2]
[313699522,1707595839172,-153.0,0.00027671,2]
[313699523,1707595839181,-529.5980865,0.00027671,2]
[313699524,1707595839190,-153.0,0.00027671,2]
[313699525,1707595839200,-153.0,0.00027671,2]
[313699526,1707595839209,-499.490219,0.00027739,2]
[313699527,1707595839218,-316.862953,0.00027739,2]
[313699528,1707595839228,-150.87929656,0.00027785,4]
[313699529,1707595839237,-500.0,0.00027808,2]
[313699530,1707595839246,-151.0,0.00027828,2]
[313699531,1707595839255,-12917.80759068,0.00027855,2]
[313699775,1707595842971,-247.39952375,0.00021247,2]
[313699777,1707595842982,-3339.77307614,0.00027855,2]
[313700109,1707595845934,-297.08067189,0.00021246,2]
[313700111,1707595845944,-523.48932811,0.00027854,2]
[313700117,1707595845991,-512.32087978,0.00027854,2]
[313700119,1707595846000,-667.10912022,0.00027855,2]
[313702027,1707596840102,-482.65618865,0.00019054,2]
[313702029,1707596844102,-196.28520133,0.00019054,2]
[313702030,1707596844122,-454.5514813,0.00019054,2]
[313702031,1707596844144,-1357.63773574,0.00019054,2]
[313702035,1707596902550,76441.6512566,0.000201,4]
[313702093,1707597032068,-763.88031577,0.00018938,2]
[313702095,1707597032077,-1396.84184735,0.00018939,2]
[313702097,1707597032086,-4790.02634783,0.00019038,2]
[313702101,1707597032120,-209.97365217,0.00019038,2]
[313702103,1707597032129,-1009.04305647,0.00019039,2]
[313702782,1707597038983,-1459.32275193,0.00019039,2]
[313702784,1707597038992,-247.39952375,0.0001904,2]
[313702786,1707597039001,-182.10827632,0.0001904,2]
[313702886,1707597043156,-310.0604618,0.0001904,2]
[313702965,1707597046218,-328.98477316,0.0001904,2]
[313702968,1707597046230,-651.85853467,0.0001904,2]
[313702971,1707597046241,-154.87609912,0.0001904,2]
[313702974,1707597046250,-678.94138998,0.00019041,2]
[313702978,1707597046259,-1621.12719707,0.00019041,2]
[313703040,1707597438486,186.00175101,0.00016458,2]
[313703041,1707597541629,344.20049745,0.00016458,2]
[313703042,1707597542424,362.515887,0.00015552,2]
[313703043,1707597553990,261.62909258,0.00016458,2]
[313703044,1707597561613,223.40007755,0.00016458,2]
[313703045,1707597568115,261.62909258,0.00016458,2]
[313703047,1707597577210,24900.0,0.0001555,2]
[313703048,1707597591995,261.62909258,0.00016458,2]
[313703049,1707597697766,93266.57980378,0.00016458,2]
[313703050,1707597733305,342.714599,0.00015496,2]
[313703051,1707597999437,467.09532,0.00015273,2]
[313703052,1707598025154,-374.55104409,0.00016264,2]
[313703053,1707598042111,-500.0,0.00016263,2]
[313703054,1707598042143,-194.88558745,0.00016263,2]
[313703056,1707598090318,7741.74097112,0.00015262,2]
[313703057,1707598090364,1838.33865209,0.00015262,2]
[313703058,1707598090407,5000.0,0.00015262,2]
[313703059,1707598090443,10000.0,0.00015262,2]
[313703060,1707598090510,319.92037679,0.00015262,2]
[313703067,1707598146133,-154.87609912,0.00016252,2]
[313703068,1707598146167,-1434.56222192,0.00016253,2]
[313703069,1707598146191,-154.87609912,0.00016253,2]
[313703070,1707598146248,-154.87609912,0.00016253,2]
[313703071,1707598146286,-212.68328114,0.00016254,2]
[313703072,1707598146325,-247.39952375,0.00016254,2]
[313703073,1707598146370,-163.17551542,0.00016254,2]
[313703074,1707598146401,-6112.43934485,0.00016254,2]
[313703075,1707598146434,-1018.7537034,0.00016255,2]
[313703076,1707598146473,-20494.50888779,0.00016255,2]
[313703077,1707598154122,-2823.5844193,0.00016252,2]
[313703078,1707598154147,-201.62030104,0.00016254,2]
[313703079,1707598154190,-63471.79668618,0.00016255,2]
[313703080,1707598154225,-981.1601613,0.00016256,2]
[313703081,1707598154278,-159.38167513,0.00016256,2]
[313703082,1707598154323,-7985.9730282,0.00016256,2]
[313703083,1707598154352,-120.78386978,0.00016258,2]
[313703084,1707598155099,-403.61310725,0.00016258,2]
[313703085,1707598155132,-6809.12315047,0.00016262,2]
[313703086,1707598155168,-1110.4934358,0.00016262,2]
[313703087,1707598161124,-678.94138998,0.00016251,2]
[313703088,1707598161162,-651.85853467,0.00016251,2]
[313703089,1707598161194,-247.39952375,0.00016261,2]
[313703090,1707598161228,-219.64398832,0.00016261,2]
[313703091,1707598161278,-224.81546129,0.00016261,2]
[313703092,1707598161478,-163.17551542,0.00016261,2]
[313703093,1707598161527,-5698.62971467,0.00016262,2]
[313703094,1707598161559,-6680.89955889,0.00016263,2]
[313703095,1707598169122,-1018.7537034,0.0001626,2]
[313703096,1707598169148,-1434.56222192,0.0001626,2]
[313703097,1707598169194,-155.11935395,0.00016261,2]
[313703098,1707598169229,-154.87609912,0.00016261,2]
[313703099,1707598169272,-6112.43934485,0.00016261,2]
[313703100,1707598169299,-82161.35428168,0.00016263,2]
[313703103,1707598173117,-7977.86072013,0.00016261,2]
[313703104,1707598173158,-599.30947814,0.00016261,2]
[313703105,1707598173191,-196561.42942379,0.00016263,2]
[313703106,1707598173246,-500.0,0.00016265,2]
[313703107,1707598173277,-185.07172042,0.00016276,2]
[313703108,1707598173314,-232.97149307,0.00016276,2]
[313703109,1707598173349,-294.68032616,0.00016276,2]
[313703110,1707598173380,-920.37445053,0.0001629,2]
[313703111,1707598186834,156.35576043,0.00016,2]
[313703112,1707598186886,179.284348,0.00016,2]
[313703204,1707598235070,-43509.01359014,0.00016,2]
[313703206,1707598235080,-159.24384051,0.00016261,2]
[313703209,1707598235090,-1624.71871009,0.00016261,2]
[313703211,1707598235100,-678.94138998,0.00016261,2]
[313703213,1707598235109,-5695.95171873,0.00016261,2]
[313703216,1707598235118,-1432.6809044,0.00016261,2]
[313703219,1707598235128,-163.17551542,0.00016262,2]
[313703222,1707598235138,-247.39952375,0.00016262,2]
[313703225,1707598235147,-14280.68492723,0.00016262,2]
[313703228,1707598235157,-15814.15393801,0.0001629,2]
[313703232,1707598235170,-360.78082749,0.0001629,2]
[313703235,1707598235179,-171.07376993,0.00016354,2]
[313703238,1707598235188,-354.4466535,0.000164,2]
[313703241,1707598235198,-167.24924809,0.00016451,2]
[313703244,1707598235207,-662.8925792,0.00016452,2]
[313703301,1707598238418,-34556.31581677,0.00016452,2]
[313703302,1707598238427,-323.90420148,0.00016454,2]
[313703303,1707598238436,-7660.24799234,0.00016454,2]
[313703304,1707598238445,-19929.20121893,0.00016455,2]
[313703305,1707598238454,-18964.89870394,0.00016455,2]
[313703306,1707598238463,-161.5844476,0.00016455,2]
[313703307,1707598238473,-155.1193995,0.00016456,2]
[313703308,1707598238482,-261.7897076,0.00016456,2]
[313703309,1707598238492,-2605.674566,0.00016456,2]
[313703311,1707598238502,-261.17070193,0.000165,2]
[313703313,1707598238511,-171.07376993,0.00016525,2]
[313703315,1707598238520,-155.0480649,0.00016552,2]
[313703317,1707598238529,-35003.12128299,0.00016554,2]
[313703319,1707598238538,-171.07376993,0.00016695,2]
[313703321,1707598238552,-171.07376993,0.00016866,2]
[313703323,1707598238561,-171.07376993,0.00017036,2]
[313703325,1707598238570,-200.0,0.00017075,2]
[313703327,1707598238579,-714.80250321,0.00017136,2]
[313703330,1707598238589,-151.0,0.00017346,2]
[313703333,1707598238598,-151.0,0.00018139,2]
[313703335,1707598238608,-2064.9784931,0.00018469,2]
[313703337,1707598238617,-280.0,0.00018783,2]
[313703339,1707598238627,-1411.76778685,0.0001885,2]
[313703341,1707598238637,-935.66145959,0.000189,2]
[313703343,1707598238646,-151.0,0.00018932,2]
[313703345,1707598238655,-354.44665342,0.00019011,2]
[313703347,1707598238664,-481.88451686,0.0001904,2]
[313703349,1707598238674,-820.31578282,0.0001904,2]
[313703351,1707598238683,-330.18381509,0.0001904,2]
[313703353,1707598238693,-200.0,0.00019041,2]
[313703355,1707598238702,-168.422778,0.00019178,2]
[313703357,1707598238710,-169.48012,0.00019178,2]
[313703359,1707598238720,-166.488178,0.00019178,2]
[313703361,1707598238730,-1115.39137616,0.000195,2]
[313703363,1707598238739,-151.0,0.00019725,2]
[313703365,1707598238748,-459.55495517,0.00019999,2]
[313703367,1707598238757,-73912.554848,0.0002,2]
[313703369,1707598238766,-2091.03843255,0.0002,2]
[313703371,1707598238775,-300.0,0.000201,2]
[313703373,1707598238784,-151.0,0.00020518,2]
[313703375,1707598238794,-391.0,0.00020661,2]
[313703377,1707598238803,-500.0,0.00020822,2]
[313703379,1707598238813,-500.0,0.00020822,2]
[313703381,1707598238822,-500.0,0.00020822,2]
[313703383,1707598238831,-500.0,0.00020822,2]
[313703384,1707598238840,-500.0,0.00020822,2]
[313703386,1707598238849,-500.0,0.00020822,2]
[313703388,1707598238858,-500.0,0.00020822,2]
[313703390,1707598238867,-500.0,0.00020822,2]
[313703392,1707598238876,-500.0,0.00020822,2]
[313703394,1707598238885,-589.24632807,0.00020822,2]
[313703396,1707598238894,-500.0,0.00020822,2]
[313703398,1707598238903,-500.0,0.00020822,2]
[313703400,1707598238913,-500.0,0.00020822,2]
[313703402,1707598238922,-217.47280667,0.00020822,2]
[313703404,1707598238932,-500.0,0.00020822,2]
[313703406,1707598238942,-500.0,0.00020822,2]
[313703408,1707598238951,-500.0,0.00020822,2]
[313703410,1707598238961,-154.90705577,0.00021176,2]
[313703412,1707598238972,-228.90420585,0.00021177,2]
[313703414,1707598238981,-154.90705577,0.00021178,2]
[313703416,1707598238990,-481.7415868,0.00021178,2]
[313703418,1707598238999,-535.69531343,0.00021178,2]
[313703420,1707598239008,-285.92416695,0.00021178,2]
[313703422,1707598239017,-1688.81025991,0.00021178,2]
[313703424,1707598239026,-10076.07475635,0.00021178,2]
[313703426,1707598239035,-3757.67448716,0.00021178,2]
[313703428,1707598239045,-154.90705577,0.00021178,2]
[313703430,1707598239054,-167.58112914,0.00021178,2]
[313703432,1707598239063,-3996.17526771,0.00021178,2]
[313703434,1707598239075,-151.0,0.00021311,2]
[313703436,1707598239084,-2587.63226793,0.00021392,2]
[313703438,1707598239093,-30787.89546682,0.00021392,2]
[313703440,1707598239102,-1647.57196,0.00021392,2]
[313703441,1707598239112,-17899.3628606,0.00021392,2]
[313703443,1707598239123,-4586.62491079,0.00021392,2]
[313703445,1707598239132,-354.44665342,0.00021622,2]
[313703447,1707598239142,-233.48717928,0.00021929,3]
[313703449,1707598239153,-5023.94440012,0.00021929,3]
[313703451,1707598239162,-941.98957502,0.00021929,3]
[313703453,1707598239171,-325.23807304,0.00021929,3]
[313703455,1707598239180,-509.44962092,0.00021929,3]
[313703457,1707598239189,-594.63910886,0.00021929,3]
[313703459,1707598239198,-169.59873723,0.00021929,3]
[313703461,1707598239207,-345.05280415,0.00021929,3]
[313703463,1707598239216,-151.0,0.00022104,2]
[313703464,1707598239226,-200.0,0.00022727,7]
[313703466,1707598239235,-348.0,0.00022727,7]
[313703468,1707598239244,-151.0,0.00022897,2]
[313703470,1707598239253,-467.09532,0.00022909,2]
[313703472,1707598239263,-741.82846738,0.00023,2]
[313703474,1707598239272,-154.87609912,0.00023677,2]
[313703476,1707598239281,-151.0,0.0002369,2]
[313703478,1707598239291,-935.66145959,0.000239,2]
[313703480,1707598239301,-354.44665342,0.00024233,2]
[313703482,1707598239310,-151.0,0.00024483,2]
[313703484,1707598239319,-12723.42901826,0.0002471,2]
[313703486,1707598239329,-5000.0,0.00024773,2]
[313703488,1707598239338,-1556.34990313,0.00025,2]
[313703490,1707598239348,-335.73756915,0.00025,2]
[313703492,1707598239358,-4740.91143851,0.00025,2]
[313703509,1707598239517,-7410.35268892,0.00025,2]
[313703511,1707598239529,-200.0,0.00025,7]
[313703513,1707598239541,-200.0,0.00025,7]
[313703514,1707598239552,-368.0,0.00025,7]
[313703516,1707598239561,-151.0,0.00025276,2]
[313703518,1707598239573,-155.40286838,0.00026,2]
[313703520,1707598239583,-280.60910696,0.00026,2]
[313703522,1707598239592,-154.87609912,0.00026,7]
[313703524,1707598239601,-153.0,0.00026027,2]
[313703526,1707598239611,-153.0,0.00026027,2]
[313703528,1707598239622,-151.0,0.00026069,2]
[313703530,1707598239631,-154.90705577,0.00026497,2]
[313703532,1707598239640,-48933.02600869,0.000265,3]
[313703534,1707598239649,-1000.0,0.00026643,3]
[313703535,1707598239658,-354.44665342,0.00026844,2]
[313703537,1707598239668,-153.0,0.00026849,2]
[313703539,1707598239677,-153.0,0.00026849,2]
[313703541,1707598239687,-151.0,0.00026862,2]
[313703543,1707598239697,-5927.53813965,0.00027,2]
[313703545,1707598239707,-239.35951133,0.00027396,2]
[313703547,1707598239716,-593.97876573,0.00027396,2]
[313703549,1707598239726,-155.08840039,0.00027396,2]
[313703551,1707598239735,-155.08840039,0.00027396,2]
[313703553,1707598239745,-155.12477302,0.00027396,2]
[313703555,1707598239754,-155.0,0.00027397,2]
[313703557,1707598239763,-500.0,0.00027397,2]
[313703559,1707598239772,-615.4781515,0.00027397,2]
[313703561,1707598239781,-15165.07,0.00027397,3]
[313703563,1707598239790,-200.0,0.000275,15]
[313703565,1707598239800,-200.0,0.000275,15]
[313703566,1707598239809,-200.0,0.000275,15]
[313703568,1707598239819,-200.0,0.000275,15]
[313703570,1707598239828,-275.0,0.000275,15]
[313703572,1707598239837,-500.0,0.00027534,2]
[313703573,1707598239846,-164.826695,0.00027572,2]
[313703575,1707598239855,-188.490794,0.00027572,2]
[313703577,1707598239864,-180.632147,0.00027572,2]
[313703578,1707598239873,-154.87609912,0.000276,2]
[313703580,1707598239882,-151.0,0.00027655,2]
[313703582,1707598239891,-500.0,0.00027671,2]
[313703584,1707598239900,-153.0,0.00027671,2]
[313703586,1707598239909,-11001.27332458,0.00027672,2]
[313703588,1707598239919,-500.0,0.00027808,2]
[313703590,1707598239928,-323.82632334,0.00027854,2]
[313703592,1707598239937,-152.11593802,0.00027854,4]
[313703593,1707598239946,-1652.15792506,0.00027855,2]
[313703595,1707598239955,-1470.96796465,0.00027855,2]
[313703597,1707598239965,-1832.45288719,0.00027855,2]
[313703599,1707598239976,-201.46509726,0.000279,2]
[313703601,1707598239985,-201.46509726,0.000279,2]
[313703603,1707598239994,-180.632147,0.00027917,2]
[313703605,1707598240003,-500.0,0.00027945,2]
[313703607,1707598240012,-500.0,0.00027999,2]
[313703609,1707598240022,-439.82460265,0.00027999,2]
[313703610,1707598240031,-170.8214653,0.00027999,2]
[313703612,1707598240040,-500.0,0.00027999,2]
[313703614,1707598240049,-174.77101652,0.00027999,2]
[313703616,1707598240059,-500.0,0.00027999,2]
[313703618,1707598240068,-500.0,0.00027999,2]
[313703620,1707598240077,-280.05218316,0.00027999,2]
[313703622,1707598240087,-500.0,0.00027999,2]
[313703624,1707598240096,-500.0,0.00027999,2]
[313703626,1707598240105,-445.88419592,0.00027999,2]
[313703627,1707598240114,-500.0,0.00027999,2]
[313703629,1707598240123,-361.95069611,0.00027999,2]
[313703631,1707598240132,-500.0,0.00027999,2]
[313703633,1707598240141,-500.0,0.00027999,2]
[313703635,1707598240150,-500.0,0.00027999,2]
[313703637,1707598240160,-500.0,0.00027999,2]
[313703639,1707598240169,-500.0,0.00027999,2]
[313703641,1707598240177,-509.0963944,0.00027999,2]
[313703643,1707598240186,-154.87609912,0.00028,2]
[313703644,1707598240195,-3295.80975819,0.00028,2]
[313703646,1707598240204,-600.0,0.00028,2]
[313703648,1707598240213,-200.75635052,0.00028,2]
[313703650,1707598240224,-201.64462394,0.00028,2]
[313703652,1707598240233,-226.29332169,0.00028,7]
[313703654,1707598240242,-119671.97001862,0.00028,2]
[313703656,1707598240251,-500.0,0.00028,7]
[313703658,1707598240260,-500.0,0.00028,7]
[313703660,1707598240270,-500.0,0.00028,7]
[313703662,1707598240279,-500.0,0.00028,7]
[313703664,1707598240288,-500.0,0.00028,7]
[313703665,1707598240296,-500.0,0.00028,7]
[313703667,1707598240306,-500.0,0.00028,7]
[313703669,1707598240315,-500.0,0.00028,7]
[313703671,1707598240324,-500.0,0.00028,7]
[313703673,1707598240333,-500.0,0.00028,7]
[313703675,1707598240342,-500.0,0.00028,7]
[313703677,1707598240351,-500.0,0.00028,7]
[313703679,1707598240360,-500.0,0.00028,7]
[313703681,1707598240369,-500.0,0.00028,7]
[313703683,1707598240378,-220.42,0.00028,7]
[313703685,1707598240387,-34932.40698502,0.00028,2]
[313703884,1707598244948,-4534.60011398,0.00028,2]
[313703890,1707598245009,-16826.19177887,0.00028,2]
[313703929,1707598245398,-17035.39684105,0.00028,2]
[313703931,1707598245407,-500.0,0.00028082,2]
[313703933,1707598245416,-150.0,0.00028085,2]
[313703935,1707598245425,-150.0,0.00028085,2]
[313703937,1707598245434,-499.490219,0.00028086,2]
[313703939,1707598245444,-316.862953,0.00028086,2]
[313703941,1707598245453,-159.6664231,0.00028219,2]
[313703943,1707598245462,-188.490794,0.00028262,2]
[313703946,1707598245471,-180.632147,0.00028262,2]
[313703949,1707598245480,-160.67795005,0.0002828,2]
[313703951,1707598245488,-499.490219,0.00028433,2]
[313703954,1707598245497,-316.862953,0.00028433,2]
[313703958,1707598245507,-151.0,0.00028448,2]
[313703961,1707598245516,-16284.69759577,0.000285,2]
[313703963,1707598245525,-180.632147,0.00028606,2]
[313703966,1707598245536,-150.87929656,0.00028609,2]
[313703968,1707598245546,-150.1,0.00028635,2]
[313703972,1707598245555,-155.0,0.00028767,2]
[313703973,1707598245564,-499.490219,0.00028779,2]
[313703975,1707598245574,-316.862953,0.00028779,2]
[313703977,1707598245583,-7000.0,0.000288,2]
[313703979,1707598245592,-7000.0,0.000288,2]
[313703981,1707598245602,-7040.774265,0.000288,2]
[313703983,1707598245611,-11377.05523829,0.000289,2]
[313703986,1707598245621,-935.66145959,0.000289,2]
[313703988,1707598245631,-188.490794,0.00028951,2]
[313703990,1707598245646,-180.632147,0.00028951,2]
[313703992,1707598245657,-155.09615962,0.00028989,2]
[313703994,1707598245666,-42710.82260463,0.0002899,2]
[313703996,1707598245675,-717.73938521,0.00028992,2]
[313703998,1707598245685,-169.47408678,0.00028993,2]
[313704000,1707598245694,-295.6225975,0.00028993,2]
[313704002,1707598245703,-232.68730694,0.00028994,2]
[313704004,1707598245713,-156.43658402,0.00028994,2]
[313704006,1707598245722,-155.55930946,0.00028994,2]
[313704008,1707598245732,-155.33653016,0.00028994,2]
[313704010,1707598245741,-155.1924515,0.00028994,2]
[313704012,1707598245750,-155.2849567,0.00028994,2]